[Event "Velammal AICF Women GM 2024"]
[Site "Chennai"]
[Date "2024.03.18"]
[Round "1.1"]
[White "Velpula Sarayu"]
[Black "Bommini Mounika Akshaya"]
[Result "1-0"]
[ECO "B45"]
[WhiteElo "2389"]
[BlackElo "2134"]
[Annotator "TA"]
[PlyCount "73"]
[EventDate "2024.03.18"]
[EventCountry "IND"]
[SourceTitle "playchess.com"]
[Source "ChessBase"]
[SourceQuality "1"]
[TimeControl "5400+30"]

{[%evp 17,73,18,25,0,26,42,44,25,29,12,5,0,62,0,1,32,65,5,199,121,135,131,185,166,178,179,169,206,270,271,468,268,397,392,381,388,424,418,452,428,425,306,319,244,220,195,619,618,615,589,1360,5522,4970,4962,29983,29984,29987,29987]} 1. e4 {[%emt 0:00:26]} c5 {[%emt 0:01:31]} 2. Nf3 {[%emt 0:00:31]} e6 {[%emt 0:00:54]} 3. d4 {[%emt 0:00:31]} cxd4 {[%emt 0:00:07]} 4. Nxd4 {[%emt 0:00:28]} Nf6 {[%emt 0:00:15]} 5. Nc3 {[%emt 0:00:32]} Nc6 {[%emt 0:00:18]} 6. Nxc6 {[%emt 0:00:26]} bxc6 {[%emt 0:00:08]} 7. e5 {[%emt 0:00:31]} Nd5 {[%emt 0:00:15]} 8. Ne4 {[%emt 0:00:33]} Qc7 {[%emt 0:00:15]} 9. f4 {[%emt 0:00:30]} Qb6 {[%emt 0:00:11]} 10. a3 {[%emt 0:00:29] Es drohte Qb4+} (10. c4 {wäre vielleicht verwirrender.} Bb4+ 11. Ke2 f5 12. exf6 Nxf6 13. Be3) 10... f5 {[%emt 0:00:57]} 11. exf6 {[%emt 0:05:25]} Nxf6 {[%emt 0:00:07]} 12. Nxf6+ {[%emt 0:03:22] Weiß steht etwas besser.} gxf6 {[%emt 0:00:06]} 13. Bd3 {[%emt 0:02:06]} Bc5 {[%emt 0:10:45]} 14. Bd2 {[%emt 0:12:47] Gegen a5 gerichtet.} d5 {[%emt 0:06:46]} (14... h5 $11) 15. Qh5+ {[%emt 0:10:10]} (15. Bc3 $1 $14) 15... Kd8 {[%emt 0:01:26]} 16. b4 {[%emt 0:04:43]} (16. Bxh7 $2 Qxb2 17. Rc1 Qb7 (17... Qxa3 $2 18. Qf7 $17) 18. Ba5+ Bb6 19. Bxb6+ axb6 $19 (19... Qxb6 20. Qf7 $17)) 16... Be7 {[%emt 0:22:40][%cal Oa7a5]} 17. Qe2 {[%emt 0:02:00] Weiß steht aktiver.} (17. Bxh7 a5 18. b5 Qxb5 $17 (18... cxb5 19. Qf7 $15)) (17. Qf3 $14) 17... Kc7 $2 {[%emt 0:15:41] [#]} (17... a5 $1 $11) 18. Be3 {[%emt 0:04:54]} (18. c4 $18) 18... d4 $16 {[%emt 0:04:17]} 19. Bf2 $36 {[%emt 0:03:19][%mdl 2048] Droht stark c3. Schwarz steht unter starkem Druck.} a5 {[%emt 0:05:11]} (19... c5 $16 {war einen Versuch wert.}) 20. O-O $18 {[%emt 0:04:47]} axb4 {[%emt 0:02:43]} 21. axb4 {[%emt 0:00:31]} Rxa1 {[%emt 0:01:58]} 22. Rxa1 {[%emt 0:00:04]} Bxb4 {[%emt 0:01:25]} 23. Qg4 {[%emt 0:10:53]} Bf8 {[%emt 0:15:51] Wehrt Qg7+ ab} (23... Re8 {kämpft weiter.} 24. Qg7+ (24. Bxh7 f5 $14) 24... Be7 25. Bxh7 (25. Qxh7 Qb2 $18) 25... Kd6) 24. Qh5 {[%emt 0:03:20]} (24. Bh4 $142 Qb2 25. Rf1 (25. Ra7+ Kb8 $14)) 24... Qc5 {[%emt 0:04:06]} (24... Be7 $142 25. Qf7 (25. Bxh7 Qb2 $16) 25... Kd8) 25. Qf7+ {[%emt 0:03:23]} Be7 {[%emt 0:03:30]} 26. c3 {[%emt 0:02:03]} ({Schwächer ist} 26. Bxh7 Qd6 27. h4 (27. Ra7+ Bb7 $18) 27... Qd8 $18) 26... Rf8 {[%emt 0:01:20]} 27. Qxh7 {[%emt 0:01:01]} e5 {[%emt 0:00:25]} 28. cxd4 {[%emt 0:00:55]} exd4 {[%emt 0:00:23]} 29. f5 {[%emt 0:06:30]} Kd8 {[%emt 0:00:44]} 30. Qh4 {[%emt 0:03:18]} Qc3 {[%emt 0:00:36]} 31. Rd1 {[%emt 0:01:29]} (31. Bxd4 Qxd3 32. Bb6+ Kd7 (32... Ke8 33. Qh5+ Rf7 34. Qh8+ Rf8 35. Qh5+ Rf7 36. Qh8+ Rf8 37. Qh5+ $11) 33. Ra7+ Ke8 34. Rxe7+ Kxe7 $17) 31... c5 {[%emt 0:00:27]} (31... Bc5 32. Qf4 Rf7) 32. Qe4 {[%emt 0:01:46]} Qb3 {[%emt 0:00:37] Verhindert Qd5+} 33. Rb1 {[%emt 0:00:24]} Qa2 {[%emt 0:00:30]} 34. Qc6 {[%emt 0:01:08] Pariert Bd6.} Qa7 {[%emt 0:00:27] Verhindert Rb8.} 35. Bg3 {[%emt 0:00:48] [#] jetzt Rb8 und aus.} Bd7 {[%emt 0:00:32]} 36. Qd5 {[%emt 0:00:07]} Ke8 {[%emt 0:00:32]} 37. Bc4 {[%emt 0:03:38] Gewichteter Fehlerwert: Weiß=0.32/Schwarz=0.71.  Verlustzug:     	---       	Schwarz=1     Fehler:       	Weiß=4     	Schwarz=5     Ungenau:       	---       	Schwarz=3     OK:         	Weiß=8     	Schwarz=7     Bester:       	Weiß=2     	Schwarz=1} 1-0

[Event "Velammal AICF Women GM 2024"]
[Site "Chennai"]
[Date "2024.03.18"]
[Round "1.2"]
[White "Mahalakshmi, M."]
[Black "Rindhiya V"]
[Result "1-0"]
[ECO "D02"]
[WhiteElo "2242"]
[BlackElo "1953"]
[Annotator "TA"]
[PlyCount "87"]
[EventDate "2024.03.18"]
[EventCountry "IND"]
[SourceTitle "playchess.com"]
[Source "ChessBase"]
[SourceQuality "1"]
[TimeControl "5400+30"]

{[%evp 15,87,0,7,0,0,0,0,4,43,50,33,44,115,108,117,126,127,122,129,119,124,123,789,70,50,48,54,58,73,73,86,86,52,81,214,216,345,348,354,350,393,400,400,392,402,412,448,407,409,385,534,528,558,551,680,668,729,729,1006,1074,1302,1299,1326,1420,1199,1194,1515,1320,1429,1339,1055,1626,1145,1122]} 1. d4 {[%emt 0:00:05]} d5 {[%emt 0:00:12]} 2. Nf3 {[%emt 0:03:47]} Nf6 {[%emt 0:00:22]} 3. c3 {[%emt 0:00:20]} e6 {[%emt 0:00:30]} 4. Bf4 {[%emt 0:00:50]} c5 {[%emt 0:01:39]} 5. e3 {[%emt 0:00:13]} Nc6 {[%emt 0:01:12]} 6. Nbd2 {[%emt 0:01:17]} Bd6 {[%emt 0:00:52]} 7. Bg3 {[%emt 0:05:44]} O-O {[%emt 0:00:46]} 8. Bd3 {[%emt 0:06:12]} b6 {[%emt 0:01:03]} 9. Qe2 {[%emt 0:03:03]} Bb7 {[%emt 0:16:09]} 10. Rd1 {[%emt 0:03:56]} Re8 {[%emt 0:13:11]} 11. e4 {[%emt 0:01:17] And now e5 would win. The position is equal.} dxe4 {[%emt 0:17:18]} 12. Nxe4 {[%emt 0:01:11]} Nxe4 {[%emt 0:00:12]} 13. Bxe4 {[%emt 0:01:27] dxc5 would now be deadly.} Qe7 {[%emt 0:02:36]} ({Black should try} 13... cxd4 $14 14. Nxd4 Nxd4 15. Rxd4 Bd5) 14. dxc5 $16 {[%emt 0:10:21]} Bxg3 {[%emt 0:04:09]} 15. hxg3 {[%emt 0:01:09]} f5 {[%emt 0:00:59]} 16. Bc2 {[%emt 0:09:48] White is much more active.} Qxc5 {[%emt 0:09:48]} 17. Ng5 {[%emt 0:03:59][%cal Oe2h5] Intending Qh5! and mate.} h6 {[%emt 0:00:30]} 18. Rd7 {[%emt 0:02:30]} Bc8 {[%emt 0:09:04][%mdl 8192] [#]} (18... Re7 $16) 19. Qh5 $1 {[%emt 0:05:28]} Re7 $1 $14 {[%emt 0:04:04]} ({Weaker is} 19... Bxd7 20. Qf7+ Kh8 21. Rxh6+ gxh6 22. Qh7#) ({Avoid the trap} 19... Qe5+ $2 20. Be4 $18) 20. Rxe7 {[%emt 0:09:29]} Qxe7 {[%emt 0:00:11]} 21. Nf3 {[%emt 0:00:57]} Ba6 {[%emt 0:00:56]} 22. Qg6 $40 {[%emt 0:05:01][%mdl 128] White goes for the king.} Qf7 {[%emt 0:03:15]} 23. Rxh6 {[%emt 0:00:39][%cal Oh6h8,Bh1h6,Bh6g6,Bg6e6][%mdl 32] Threatens to win with Rh8+!} Qxg6 {[%emt 0:01:44]} 24. Rxg6 {[%emt 0:00:02]} Kf7 {[%emt 0:01:09] White stays focused until the end.} (24... Re8 $16) 25. Bxf5 $18 {[%emt 0:00:53]} Ne7 {[%emt 0:08:50]} (25... exf5 {might work better.} 26. Rxc6 Re8+ 27. Kd1 Re7) 26. Ng5+ {[%emt 0:04:58]} ({Stronger than} 26. Rxe6 Nxf5 27. Ng5+ Kf8 $17) 26... Ke8 {[%emt 0:00:54]} 27. Rxe6 {[%emt 0:01:32]} Bc8 {[%emt 0:00:26]} 28. Bg6+ {[%emt 0:01:28]} Kd8 {[%emt 0:01:46]} 29. Be4 {[%emt 0:02:13]} Rb8 {[%emt 0:00:37]} 30. Re5 {[%emt 0:01:27]} b5 {[%emt 0:00:12][%cal Bb6b5,Bb5b4][%mdl 32]} 31. Ne6+ {[%emt 0:01:48]} Bxe6 {[%emt 0:00:04]} 32. Rxe6 {[%emt 0:00:03][%mdl 4096] Endgame. KRB-KRN} Kd7 {[%emt 0:00:03]} 33. Ra6 {[%emt 0:00:10] White is clearly winning.} b4 {[%emt 0:00:31]} 34. Rxa7+ {[%emt 0:00:07]} Kd6 {[%emt 0:00:03]} 35. Rb7 {[%emt 0:00:25]} Rxb7 {[%emt 0:00:10]} 36. Bxb7 {[%emt 0:00:01]} bxc3 {[%emt 0:00:09]} 37. bxc3 {[%emt 0:00:04] KB-KN} Kc7 {[%emt 0:00:00]} 38. Be4 {[%emt 0:00:07]} Nc8 {[%emt 0:00:01]} 39. f4 {[%emt 0:00:13]} Nd6 {[%emt 0:00:03]} 40. Bd3 {[%emt 0:00:04]} Kc6 {[%emt 0:00:24]} 41. Ke2 {[%emt 0:00:05]} Kc5 {[%emt 0:00:02]} 42. Ke3 {[%emt 0:00:04]} Nc8 {[%emt 0:00:09]} 43. g4 {[%emt 0:00:20]} Ne7 {[%emt 0:00:02]} 44. Be4 {[%emt 0:00:17] Weighted Error Value: White=0.35/Black=0.32.  Loses game:     	---       	Black=1      Missed win:     	White=1     	---        Mistake:       	---       	Black=3      Inaccurate:     	---       	Black=2      OK:         	White=13    	Black=7      Best:        	White=5     	Black=2      Strong:       	---       	Black=1} 1-0

[Event "Velammal AICF Women GM 2024"]
[Site "Chennai"]
[Date "2024.03.18"]
[Round "1.3"]
[White "Chitlange Sakshi"]
[Black "Uuriintuya, Uurtsaikh"]
[Result "1-0"]
[ECO "E63"]
[WhiteElo "2175"]
[BlackElo "2288"]
[Annotator "TA"]
[PlyCount "124"]
[EventDate "2024.03.18"]
[EventCountry "IND"]
[SourceTitle "playchess.com"]
[Source "ChessBase"]
[SourceQuality "1"]
[TimeControl "5400+30"]

{[%evp 14,124,39,17,65,44,44,25,9,10,15,14,53,56,62,60,73,0,25,8,34,19,14,0,0,-27,-6,0,31,0,8,0,112,112,112,124,113,106,138,137,149,104,114,108,132,110,128,126,125,79,108,52,36,45,68,70,67,50,57,58,58,58,43,43,48,36,43,43,43,21,143,128,140,140,230,92,208,208,193,186,186,163,161,156,138,8,470,267,708,702,29942,29940,7847,7855,4775,4775,29977,29978,29978,29975,29976,29977,29977,29977,29977,29976,29976,29975,29979,29976,29975,29975,29979]} 1. d4 {[%emt 0:00:06]} Nf6 {[%emt 0:00:19]} 2. c4 {[%emt 0:00:12]} g6 {[%emt 0:00:13]} 3. g3 {[%emt 0:00:16]} Bg7 {[%emt 0:00:21]} 4. Bg2 {[%emt 0:00:10]} O-O {[%emt 0:01:15]} 5. Nc3 {[%emt 0:00:10]} d6 {[%emt 0:01:33]} 6. Nf3 {[%emt 0:00:07]} Nc6 {[%emt 0:04:26]} 7. O-O {[%emt 0:01:06]} a6 {[%emt 0:00:45]} 8. Bf4 {[%emt 0:03:06]} Na5 {[%emt 0:02:31]} (8... Rb8 $11 {is superior.}) 9. Qd3 {[%emt 0:06:35]} Rb8 {[%emt 0:10:41][%cal Ob7b5]} 10. e4 {[%emt 0:12:56]} b5 {[%emt 0:06:42]} 11. cxb5 {[%emt 0:05:36]} axb5 {[%emt 0:00:46]} 12. Rfe1 {[%emt 0:02:34][%cal Ob2b4]} Nh5 {[%emt 0:05:54]} 13. Bd2 {[%emt 0:06:36]} b4 {[%emt 0:11:39]} 14. Nd5 {[%emt 0:01:53][%cal Oa1c1]} c5 {[%emt 0:01:54]} 15. a3 {[%emt 0:11:16]} (15. Bg5 $16 c4 16. Qd2) 15... Nc6 {[%emt 0:14:53]} 16. axb4 {[%emt 0:05:07]} (16. dxc5 {keeps more tension.} bxa3 17. Rxa3 e6 18. Nb6) 16... Nxd4 {[%emt 0:05:05]} 17. bxc5 {[%emt 0:09:14]} dxc5 {[%emt 0:00:28]} 18. Nxd4 {[%emt 0:02:01]} Bxd4 {[%emt 0:05:16]} 19. Bc3 {[%emt 0:07:04]} e6 {[%emt 0:06:54]} 20. Ne3 {[%emt 0:00:57]} Qf6 {[%emt 0:02:30] Repels Bf3} 21. e5 {[%emt 0:13:44]} Qxe5 {[%emt 0:01:56]} 22. Nc2 {[%emt 0:01:25][%csl LRd4,LRe5]} Qd6 {[%emt 0:04:07]} (22... Bxc3 $1 $11 23. Rxe5 Bxe5) 23. Nxd4 $16 {[%emt 0:00:37]} cxd4 {[%emt 0:02:03]} ({Don't blunder} 23... e5 $2 24. Rxe5 (24. g4 $2 Nf4 $19) 24... Nf6 (24... Qxe5 $2 25. Nc6 $18) 25. Ra4 $18) 24. Qxd4 {[%emt 0:00:13]} Qxd4 {[%emt 0:00:40]} 25. Bxd4 {[%emt 0:00:01]} Bd7 {[%emt 0:02:24]} 26. Ra7 {[%emt 0:03:23]} Bb5 {[%emt 0:01:04]} 27. Ra5 {[%emt 0:05:28] Be5 is the strong threat.} Bc4 {[%emt 0:01:09]} 28. Rea1 {[%emt 0:00:53]} f6 {[%emt 0:04:05] Dodges Be5} 29. f4 {[%emt 0:00:26]} Rfd8 {[%emt 0:02:13]} 30. Bc3 {[%emt 0:00:12]} Bd5 {[%emt 0:00:24]} 31. Bh3 {[%emt 0:00:42]} (31. Ra7 $142) 31... Rb7 {[%emt 0:00:52]} 32. Ra6 {[%emt 0:00:47]} (32. b4 $16) 32... Kf7 $14 {[%emt 0:00:15]} 33. Ra7 {[%emt 0:00:40]} Ng7 {[%emt 0:00:34]} 34. Rxb7+ {[%emt 0:00:27]} Bxb7 {[%emt 0:00:02]} 35. Ra7 {[%emt 0:00:17]} Rd7 {[%emt 0:00:08]} 36. Kf2 {[%emt 0:00:32]} Nf5 {[%emt 0:00:28]} 37. Bg2 {[%emt 0:00:38]} Bc6 {[%emt 0:00:28]} 38. Rxd7+ {[%emt 0:00:12]} Bxd7 {[%emt 0:00:07][%mdl 4096] Endgame. KBB-KBN} 39. b4 {[%emt 0:00:31]} Nd6 {[%emt 0:00:17]} 40. Ke3 {[%emt 0:00:25]} Ke7 {[%emt 0:00:55]} 41. Kd3 {[%emt 0:00:44]} g5 {[%emt 0:01:10]} (41... Nf5 $11) 42. fxg5 $16 {[%emt 0:00:21]} fxg5 {[%emt 0:00:05]} 43. Bd2 {[%emt 0:00:18]} g4 {[%emt 0:00:34]} (43... h6 $16) 44. Bf4 {[%emt 0:00:55]} (44. Bg5+ $18 {is more deadly.} Ke8 45. Kd4) 44... Bb5+ {[%emt 0:01:00] [#]} (44... Nf5 $16 {might work better.}) 45. Kd4 $1 $18 {[%emt 0:00:12]} Be2 {[%emt 0:00:38]} 46. Kc5 {[%emt 0:00:40]} Nf7 {[%emt 0:00:22]} 47. b5 {[%emt 0:00:41]} e5 {[%emt 0:00:48]} 48. Bd2 {[%emt 0:00:56] Hoping for b6.} Nd6 {[%emt 0:00:30]} 49. Bc6 {[%emt 0:00:35]} ({White should play} 49. Bg5+ $16 Ke6 50. Bd5+ Kd7 51. Bc6+ Ke6 52. Bd2) 49... h5 $2 {[%emt 0:00:37][%mdl 8192]} (49... Bxb5 $1 $11 {and Black stays safe.} 50. Bxb5 (50. Bg5+ Ke6 $11) 50... Ne4+ 51. Kd5 Nxd2 52. Kxe5 Nf3+ 53. Ke4 Nxh2) 50. b6 {[%emt 0:00:33]} (50. Bh6 $142 Ke6 51. Bf8) 50... Ba6 $2 {[%emt 0:00:37]} (50... Bf3 51. Bxf3 gxf3) 51. Kd5 {[%emt 0:00:28][%cal Od2b4] White wants to mate with Bb4!} Nc4 {[%emt 0:00:45]} 52. Bg5+ {[%emt 0:00:21]} Kf7 {[%emt 0:00:18]} 53. b7 {[%emt 0:00:14]} Nb6+ {[%emt 0:00:15]} 54. Kxe5 {[%emt 0:00:28]} Nd7+ {[%emt 0:00:24]} 55. Bxd7 {[%emt 0:00:09]} Bxb7 {[%emt 0:00:06]} 56. Bf5 {[%emt 0:00:17]} Bg2 {[%emt 0:00:17]} 57. Be4 {[%emt 0:00:32]} Bf1 {[%emt 0:01:31]} 58. Kf5 {[%emt 0:00:06]} Be2 {[%emt 0:00:30]} 59. Bd8 {[%emt 0:00:39]} Ke8 {[%emt 0:00:19]} 60. Bh4 {[%emt 0:00:16]} Kd7 {[%emt 0:00:14]} 61. Kg5 {[%emt 0:00:50]} Ke6 {[%emt 0:00:29]} 62. Bg6 {[%emt 0:00:09]} Kd7 {[%emt 0:01:53]} 1-0

[Event "Velammal AICF Women GM 2024"]
[Site "Chennai"]
[Date "2024.03.18"]
[Round "1.4"]
[White "Sedina, Elena"]
[Black "Enkhtuul, Altan-Ulzii"]
[Result "1/2-1/2"]
[ECO "B03"]
[WhiteElo "2161"]
[BlackElo "2195"]
[Annotator "RC"]
[PlyCount "65"]
[EventDate "2024.03.18"]
[EventCountry "IND"]
[SourceTitle "playchess.com"]
[Source "ChessBase"]
[SourceQuality "1"]
[TimeControl "5400+30"]

1. e4 {[%emt 0:00:11]} Nf6 {[%emt 0:00:48]} 2. e5 {[%emt 0:00:25]} Nd5 {[%emt 0:00:17]} 3. d4 {[%emt 0:00:13]} d6 {[%emt 0:00:04]} 4. c4 {[%emt 0:00:46]} Nb6 {[%emt 0:00:05]} 5. exd6 {[%emt 0:00:15]} exd6 {[%emt 0:00:05]} 6. Nc3 {[%emt 0:00:13]} Nc6 {[%emt 0:00:05]} 7. d5 {[%emt 0:09:05]} Ne5 {[%emt 0:00:06]} 8. f4 {[%emt 0:00:35]} Ned7 {[%emt 0:00:07]} 9. Nf3 {[%emt 0:03:33]} Be7 {[%emt 0:00:27]} 10. Be2 {[%emt 0:08:20]} O-O {[%emt 0:01:19]} 11. O-O {[%emt 0:00:12]} Re8 {[%emt 0:04:32]} 12. Be3 {[%emt 0:16:23]} Bf6 {[%emt 0:07:31]} 13. Bd4 {[%emt 0:12:00]} Nc5 {[%emt 0:00:58]} 14. Qd2 {[%emt 0:08:50]} Bg4 {[%emt 0:13:00]} 15. b3 {[%emt 0:06:37]} a5 {[%emt 0:27:29]} 16. h3 {[%emt 0:17:54]} Bxf3 {[%emt 0:02:28]} 17. Bxf3 {[%emt 0:00:16]} a4 {[%emt 0:00:13]} 18. Rab1 {[%emt 0:00:38]} axb3 {[%emt 0:03:30]} 19. axb3 {[%emt 0:01:22]} h6 {[%emt 0:09:22]} 20. Bxf6 {[%emt 0:08:53]} Qxf6 {[%emt 0:00:06]} 21. Nb5 {[%emt 0:00:02]} Na6 {[%emt 0:13:32]} 22. Rfe1 {[%emt 0:00:42]} Nd7 {[%emt 0:00:34]} 23. b4 {[%emt 0:01:21]} Nf8 {[%emt 0:01:06]} 24. g3 {[%emt 0:01:22]} Ng6 {[%emt 0:02:23]} 25. Bg2 {[%emt 0:00:09]} h5 {[%emt 0:00:15]} 26. Rxe8+ {[%emt 0:00:45]} Rxe8 {[%emt 0:00:05]} 27. h4 {[%emt 0:00:14]} Ne7 {[%emt 0:01:12]} 28. Re1 {[%emt 0:02:18]} Rf8 {[%emt 0:04:51]} 29. Qd4 {[%emt 0:00:24]} Qxd4+ {[%emt 0:01:45]} 30. Nxd4 {[%emt 0:00:01]} Nc8 {[%emt 0:00:09]} 31. Nb5 {[%emt 0:01:15]} Rd8 {[%emt 0:01:28]} 32. Rb1 {[%emt 0:00:36]} Ne7 {[%emt 0:00:51]} 33. Kf2 {[%emt 0:00:20]} 1/2-1/2

[Event "Velammal AICF Women GM 2024"]
[Site "Chennai"]
[Date "2024.03.18"]
[Round "1.5"]
[White "Maisuradze, Nino"]
[Black "Monnisha G K"]
[Result "0-1"]
[ECO "D30"]
[WhiteElo "2254"]
[BlackElo "2202"]
[Annotator "TA"]
[PlyCount "66"]
[EventDate "2024.03.18"]
[EventCountry "IND"]
[SourceTitle "playchess.com"]
[Source "ChessBase"]
[SourceQuality "1"]
[TimeControl "5400+30"]

{[%evp 9,66,0,0,-12,-5,-37,-29,-49,-52,-66,-37,-48,-37,-45,-29,-33,-29,-114,0,-71,-81,-138,-121,-136,-141,-232,-35,-36,-21,-10,-24,-101,-106,-214,-222,-216,-186,-277,-249,-570,-554,-569,-568,-543,-538,-652,-671,-697,-680,-872,-855,-926,-920,-1743,-1562,-1467,-1483,-1089,-1050]} 1. d4 {[%emt 0:01:41]} Nf6 {[%emt 0:00:32]} 2. Nf3 {[%emt 0:00:13]} e6 {[%emt 0:00:32]} 3. c4 {[%emt 0:00:07]} d5 {[%emt 0:00:06]} 4. Bg5 {[%emt 0:00:21]} h6 {[%emt 0:00:40]} 5. Bh4 {[%emt 0:02:25]} dxc4 {[%emt 0:00:41]} (5... g5 $5 6. Bg3 $8 Bg7 $11) 6. e3 {[%emt 0:00:52][%cal Ob1c3]} b5 {[%emt 0:05:47]} 7. a4 {[%emt 0:05:04]} Bb4+ {[%emt 0:01:39]} 8. Nbd2 {[%emt 0:04:53] Black has an edge.} c6 {[%emt 0:05:26]} 9. Qc2 {[%emt 0:02:47]} Bb7 {[%emt 0:04:48]} 10. Be2 {[%emt 0:01:47]} Nbd7 {[%emt 0:00:47]} 11. O-O {[%emt 0:01:17]} Qb6 {[%emt 0:06:28]} 12. Rfd1 {[%emt 0:14:19]} O-O {[%emt 0:04:24]} 13. e4 {[%emt 0:05:30]} (13. Ne5 $11) 13... Bxd2 {[%emt 0:09:24]} (13... a6 $17 {Hoping for ...c5.} 14. Ne5 c5 (14... Qxd4 $2 15. Ndxc4 Qa7 16. Nxd7 $18) 15. Nxd7 Nxd7) 14. Rxd2 {[%emt 0:12:03]} (14. Nxd2 $11 {remains equal.} a5 15. Rac1) 14... c5 $17 {[%emt 0:17:20]} 15. dxc5 {[%emt 0:27:17]} ({White should play} 15. axb5 Nxe4 (15... Bxe4 16. Qxc4 Bd5 17. Qc1 $11) 16. Rdd1) 15... Nxc5 {[%emt 0:05:45]} 16. Bxf6 {[%emt 0:02:56]} gxf6 {[%emt 0:00:28]} 17. axb5 {[%emt 0:11:37]} (17. e5 $17) 17... Nb3 $2 {[%emt 0:15:42]} (17... Nxe4 $19 18. Bxc4 (18. Rd4 $2 Nxf2 19. Qxc4 e5 $19) 18... Nxd2 19. Qxd2 Rac8) 18. Ra3 $1 $15 {[%emt 0:01:21]} Nxd2 {[%emt 0:00:08]} (18... Qxb5 $2 {too greedy.} 19. Bxc4 (19. Qxc4 $2 Qxc4 20. Bxc4 Nxd2 $19) 19... Qc6 20. Qxb3 $18 (20. Rxb3 Rfc8 $18) (20. Bxb3 Rfc8 $18)) 19. Nxd2 {[%emt 0:02:21]} Qd4 {[%emt 0:05:13] Strongly threatening ...Rad8.} 20. Rg3+ {[%emt 0:01:00] [#]} (20. Qc1 $1 $11 Rfd8 (20... Bxe4 $2 {perishes.} 21. Nxe4 Qxe4 22. Qxh6 $18) 21. Nxc4) 20... Kh7 $1 $17 {[%emt 0:00:35] And now ...Rad8 would win.} 21. e5+ {[%emt 0:00:22]} (21. Rg4 $17 {was worth a try.} Qd7 22. Rf4) 21... f5 $19 {[%emt 0:00:17]} 22. Nxc4 {[%emt 0:00:34] [#]} Rac8 $1 {[%emt 0:06:52]} 23. b3 {[%emt 0:00:33]} (23. Rc3 $142) 23... Rg8 {[%emt 0:00:34]} 24. Qc3 $2 {[%emt 0:00:27]} (24. Bf1 {is more resistant.}) 24... Qxc3 {[%emt 0:00:17] Black is clearly winning.} 25. Rxc3 {[%emt 0:00:10]} Rxg2+ {[%emt 0:00:30]} 26. Kf1 {[%emt 0:00:00]} Rxh2 {[%emt 0:00:20][%cal Rh2h1]} 27. f3 {[%emt 0:00:29]} Bd5 {[%emt 0:00:38]} 28. Re3 {[%emt 0:00:53]} f4 {[%emt 0:02:09]} 29. Rc3 {[%emt 0:00:47]} Kg7 {[%emt 0:00:34]} 30. Rc2 {[%emt 0:00:10]} Bxf3 {[%emt 0:00:29] ...Rxe2 would now be deadly.} 31. Ra2 {[%emt 0:00:59]} Bxe2+ {[%emt 0:00:23]} 32. Rxe2 {[%emt 0:00:05]} Rxe2 {[%emt 0:00:09]} 33. Kxe2 {[%emt 0:00:02]} Rc5 {[%emt 0:00:14] Weighted Error Value: White=0.91/Black=0.16 (very precise) .  Missed win:     	---       	Black=1      Mistake:       	White=8     	Black=1      Inaccurate:     	---       	Black=1      OK:         	White=2     	Black=9      Best:        	White=3     	Black=3      Strong:       	White=1     	Black=1} 0-1